fUSD/lending_fUSD_20260109
["ID","MTS","AMOUNT","RATE_DAILY","PERIOD"]
[401137250,1767963055458,-275.980319,0.00016438,2]
[401137251,1767963055467,-457.427238,0.00016438,2]
[401137252,1767963055476,-1930.347932,0.00016438,2]
[401137253,1767963055486,-151.0,0.00016438,2]
[401137254,1767963055495,-275.980319,0.00016438,2]
[401137255,1767963055509,-457.427238,0.00016438,2]
[401137256,1767963055526,-1930.347932,0.00016438,2]
[401137257,1767963055545,-275.980319,0.00016438,2]
[401137258,1767963055555,-457.427238,0.00016438,2]
[401137259,1767963055566,-1930.347941,0.00016438,2]
[401137260,1767963055575,-275.980319,0.00016438,2]
[401137261,1767963055585,-457.427238,0.00016438,2]
[401137262,1767963055594,-275.980319,0.00016438,2]
[401137263,1767963055604,-457.427238,0.00016438,2]
[401137264,1767963055613,-275.980319,0.00016438,2]
[401137265,1767963055622,-457.427238,0.00016438,2]
[401137266,1767963055632,-275.980319,0.00016438,2]
[401137267,1767963055642,-457.427238,0.00016438,2]
[401137268,1767963055652,-275.980319,0.00016438,2]
[401137269,1767963055661,-457.427238,0.00016438,2]
[401137270,1767963055671,-275.980319,0.00016438,2]
[401137271,1767963055680,-457.427238,0.00016438,2]
[401137272,1767963055690,-275.980319,0.00016438,2]
[401137273,1767963055700,-457.427238,0.00016438,2]
[401137274,1767963055711,-457.427238,0.00016438,2]
[401137275,1767963055721,-275.980319,0.00016438,2]
[401137276,1767963055731,-457.427238,0.00016438,2]
[401137277,1767963055740,-275.980319,0.00016438,2]
[401137278,1767963055752,-457.427238,0.00016438,2]
[401137279,1767963055765,-275.980319,0.00016438,2]
[401137280,1767963055776,-457.427238,0.00016438,2]
[401137281,1767963055786,-275.980319,0.00016438,2]
[401137282,1767963055796,-457.427238,0.00016438,2]
[401137283,1767963055806,-275.980319,0.00016438,2]
[401137284,1767963055817,-275.980319,0.00016438,2]
[401137285,1767963055827,-151.0,0.00016438,2]
[401137286,1767963055837,-275.980319,0.00016438,2]
[401137287,1767963055847,-275.980319,0.00016438,2]
[401137288,1767963055857,-151.0,0.00016438,2]
[401137289,1767963055867,-457.427238,0.00016438,2]
[401137290,1767963055878,-275.980321,0.00016438,2]
[401137291,1767963055888,-151.0,0.00016438,2]
[401137292,1767963055899,-457.427242,0.00016438,2]
[401137293,1767963055909,-151.0,0.00016438,2]
[401137294,1767963055920,-151.0,0.00016438,2]
[401137295,1767963055930,-466.04925,0.00016438,2]
[401137296,1767963055940,-279.239714,0.00016438,2]
[401137297,1767963055950,-466.04925,0.00016438,2]
[401137298,1767963055960,-466.04925,0.00016438,2]
[401137299,1767963055970,-466.04925,0.00016438,2]
[401137300,1767963055980,-151.0,0.00016438,2]
[401137301,1767963055990,-466.04925,0.00016438,2]
[401137302,1767963056000,-284.641356,0.00016438,2]
[401137303,1767963056010,-466.04925,0.00016438,2]
[401137304,1767963056021,-466.04925,0.00016438,2]
[401137305,1767963056031,-466.04925,0.00016438,2]
[401137306,1767963056041,-466.04925,0.00016438,2]
[401137307,1767963056051,-804.049195,0.00016438,2]
[401137308,1767963056061,-804.049195,0.00016438,2]
[401137309,1767963056071,-804.049195,0.00016438,2]
[401137310,1767963056081,-804.049195,0.00016438,2]
[401137311,1767963056091,-804.049195,0.00016438,2]
[401137312,1767963056101,-804.049195,0.00016438,2]
[401137313,1767963056112,-804.049195,0.00016438,2]
[401137314,1767963056122,-804.049195,0.00016438,2]
[401137315,1767963056133,-151.0,0.00016438,2]
[401137316,1767963056143,-804.049195,0.00016438,2]
[401137317,1767963056153,-2079.781953,0.00016438,2]
[401137318,1767963056163,-804.049195,0.00016438,2]
[401137319,1767963056173,-1374.18462248,0.00016438,2]
[401137320,1767963056191,-705.59733052,0.00016438,2]
[401137321,1767963056202,-159.281743,0.00016438,2]
[401137322,1767963056212,-804.049195,0.00016438,2]
[401137323,1767963056223,-466.04925,0.00016438,2]
[401137324,1767963056233,-664.60469403,0.00016438,2]
[401137325,1767963056251,-1415.17725897,0.00016438,2]
[401137326,1767963056262,-804.049195,0.00016438,2]
[401137327,1767963056273,-466.04925,0.00016438,2]
[401137328,1767963056285,-338.16509636,0.00016438,2]
[401137329,1767963056296,-514.87727605,0.00016438,2]
[401137337,1767963993125,-500.0,0.00012274,2]
[401137338,1767963993146,-251.0,0.00012274,2]
[401137339,1767963993166,-173.23414075,0.0001241,2]
[401137340,1767963993197,-188.96599264,0.00012487,2]
[401137347,1767964231809,-1.60149049,0.00012487,2]
[401137348,1767964231820,-150.0,0.00012499,2]
[401137349,1767964231831,-200.0,0.0001251,2]
[401137350,1767964231840,-1000.0,0.0001251,2]
[401137351,1767964231850,-182.1,0.00012516,2]
[401137352,1767964231859,-166.66,0.00012587,2]
[401137353,1767964231869,-917.1,0.00012601,2]
[401137354,1767964231878,-166.66,0.00012852,2]
[401137355,1767964231888,-1200.0,0.00013015,2]
[401137356,1767964231897,-386.84722585,0.00013016,2]
[401137357,1767964231906,-386.84722585,0.00013016,2]
[401137358,1767964231916,-578.3658616,0.00013016,2]
[401137359,1767964231925,-150.0,0.00013023,2]
[401137360,1767964231934,-241.0,0.00013023,2]
[401137361,1767964231944,-192.09185639,0.00013024,2]
[401137362,1767964231953,-500.0,0.00013024,2]
[401137363,1767964231963,-195.2733431,0.00013024,2]
[401137364,1767964231973,-239.15926289,0.00013024,2]
[401137365,1767964231983,-500.0,0.00013024,2]
[401137366,1767964231992,-500.0,0.00013024,2]
[401137367,1767964232002,-500.0,0.00013024,2]
[401137368,1767964232011,-500.0,0.00013024,2]
[401137369,1767964232020,-500.0,0.00013024,2]
[401137371,1767964232030,-500.0,0.00013024,2]
[401137373,1767964232040,-505.87873458,0.00013024,2]
[401137375,1767964232049,-500.0,0.00013024,2]
[401137377,1767964232058,-386.32912744,0.00013024,2]
[401137379,1767964232067,-64218.77585808,0.00013025,2]
[401137381,1767964232080,-356.52330817,0.00013025,2]
[401137388,1767964232134,-259.49999994,0.00013025,2]
[401137390,1767964232147,-1630.87669183,0.00013025,2]
[401137413,1767964237975,-142.51399628,0.00013016,2]
[401137414,1767964238033,-551.62336759,0.00013016,2]
[401137415,1767964238056,-600.0,0.00013016,2]
[401137416,1767964239982,-1139.09014442,0.00013016,2]
[401137417,1767964240038,-271.90352406,0.00013016,2]
[401137418,1767964240100,-3355.20698543,0.00013016,2]
[401137419,1767964240109,-933534.32414198,0.00013025,2]
[401137420,1767964240119,-166.66,0.00013117,2]
[401137421,1767964240128,-1322.632,0.00013124,2]
[401137422,1767964240137,-165.213,0.00013124,2]
[401137423,1767964240146,-7411.4566,0.00013125,2]
[401137424,1767964240156,-332.1524,0.00013125,2]
[401137425,1767964240165,-58135.37341515,0.00013125,2]
[401137426,1767964240174,-167.96126191,0.00013125,2]
[401137427,1767964240183,-12227.46277552,0.00013125,2]
[401137428,1767964240192,-182.1,0.00013211,2]
[401137429,1767964240201,-500.0,0.00013217,2]
[401137430,1767964240210,-151.0,0.00013217,2]
[401137431,1767964240219,-500.0,0.00013217,2]
[401137432,1767964240228,-151.0,0.00013217,2]
[401137433,1767964240237,-151.0,0.00013217,2]
[401137434,1767964240246,-500.0,0.00013217,2]
[401137435,1767964240255,-151.0,0.00013217,2]
[401137436,1767964240264,-500.0,0.00013217,2]
[401137437,1767964240274,-151.0,0.00013217,2]
[401137438,1767964240283,-151.0,0.00013217,2]
[401137439,1767964240292,-151.0,0.00013217,2]
[401137440,1767964240301,-500.0,0.00013217,2]
[401137441,1767964240310,-151.0,0.00013217,2]
[401137442,1767964240319,-151.0,0.00013217,2]
[401137443,1767964240328,-500.0,0.00013217,2]
[401137444,1767964240337,-151.0,0.00013217,2]
[401137445,1767964240346,-151.0,0.00013217,2]
[401137446,1767964240355,-500.0,0.00013217,2]
[401137447,1767964240367,-151.0,0.00013217,2]
[401137448,1767964240377,-151.0,0.00013217,2]
[401137449,1767964240386,-151.0,0.00013217,2]
[401137450,1767964240395,-200.0,0.00013217,2]
[401137451,1767964240404,-151.0,0.00013217,2]
[401137452,1767964240413,-151.0,0.00013217,2]
[401137453,1767964240422,-151.0,0.00013217,2]
[401137454,1767964240432,-151.0,0.00013217,2]
[401137455,1767964240440,-151.0,0.00013217,2]
[401137456,1767964240450,-151.0,0.00013217,2]
[401137457,1767964240459,-151.0,0.00013217,2]
[401137458,1767964240468,-151.0,0.00013217,2]
[401137459,1767964240477,-151.0,0.00013217,2]
[401137460,1767964240486,-500.0,0.00013217,2]
[401137461,1767964240495,-500.0,0.00013217,2]
[401137462,1767964240504,-200.0,0.00013217,2]
[401137463,1767964240513,-500.0,0.00013217,2]
[401137464,1767964240523,-500.0,0.00013217,2]
[401137465,1767964240532,-500.0,0.00013217,2]
[401137466,1767964240542,-500.0,0.00013217,2]
[401137467,1767964240551,-500.0,0.00013217,2]
[401137468,1767964240560,-500.0,0.00013217,2]
[401137469,1767964240570,-500.0,0.00013217,2]
[401137470,1767964240578,-500.0,0.00013217,2]
[401137471,1767964240588,-500.0,0.00013217,2]
[401137472,1767964240597,-577.21725198,0.00013217,2]
[401137473,1767964240606,-200.0,0.00013217,2]
[401137474,1767964240615,-1000.0,0.00013325,2]
[401137475,1767964240624,-166.66,0.00013382,2]
[401137476,1767964240634,-158.55612686,0.00013491,2]
[401137477,1767964240643,-300.0,0.00013501,2]
[401137478,1767964240652,-6060.33801774,0.00013559,2]
[401137479,1767964240661,-166.66,0.00013647,2]
[401137480,1767964240670,-12227.46277544,0.00013656,2]
[401137481,1767964240679,-500.0,0.00013698,2]
[401137482,1767964240688,-160.97517369,0.00013698,2]
[401137483,1767964240696,-500.0,0.00013698,2]
[401137484,1767964240705,-500.0,0.00013698,2]
[401137485,1767964240714,-517.03405234,0.00013698,2]
[401137486,1767964240723,-200.0,0.00013699,2]
[401137487,1767964240732,-386.84722581,0.00013714,2]
[401137488,1767964240741,-386.84722581,0.00013714,2]
[401137489,1767964240750,-305.75969384,0.00013736,2]
[401137490,1767964240759,-250.0,0.00013736,2]
[401137491,1767964240768,-182.1,0.00013907,2]
[401137492,1767964240777,-166.66,0.00013912,2]
[401137493,1767964240786,-1000.0,0.00014073,2]
[401137494,1767964240795,-255.0,0.0001413,2]
[401137495,1767964240804,-3240.0,0.00014157,2]
[401137496,1767964240813,-12227.46277544,0.00014186,2]
[401137497,1767964240822,-1680.0,0.00014317,2]
[401137498,1767964240831,-386.84722581,0.00014411,2]
[401137499,1767964240840,-386.84722581,0.00014411,2]
[401137500,1767964240849,-182.1,0.00014602,2]
[401137501,1767964240858,-578.3658616,0.00014677,2]
[401137502,1767964240867,-167.96126188,0.00014717,2]
[401137503,1767964240876,-12227.46277544,0.00014717,2]
[401137504,1767964240886,-500.0,0.00014763,2]
[401137505,1767964240895,-151.0,0.00014862,2]
[401137506,1767964240905,-151.17,0.00014862,2]
[401137507,1767964240914,-151.0,0.00014862,2]
[401137508,1767964240924,-151.0,0.00014862,2]
[401137509,1767964240933,-386.84722581,0.00015109,2]
[401137510,1767964240945,-12227.46277544,0.00015247,2]
[401137511,1767964240954,-182.1,0.00015297,2]
[401137512,1767964240964,-300.0,0.00015328,2]
[401137513,1767964240973,-180.0,0.00015442,2]
[401137514,1767964240982,-500.0,0.00015507,2]
[401137515,1767964240992,-553.64373807,0.00015507,2]
[401137516,1767964241002,-639.07285647,0.00015507,2]
[401137517,1767964241011,-250.0,0.00015507,2]
[401137518,1767964241020,-170.05589298,0.00015507,2]
[401137519,1767964241029,-250.0,0.00015507,2]
[401137520,1767964241038,-322.6107,0.00015507,2]
[401137521,1767964241048,-418.83219715,0.00015507,2]
[401137522,1767964241058,-250.0,0.00015507,2]
[401137523,1767964241067,-250.0,0.00015507,2]
[401137524,1767964241077,-500.0,0.00015507,2]
[401137525,1767964241086,-500.0,0.00015507,2]
[401137526,1767964241096,-1000.0,0.00015637,2]
[401137527,1767964241105,-2351.0,0.00015748,2]
[401137528,1767964241116,-12227.46277544,0.00015778,2]
[401137529,1767964241125,-4421.0,0.00015805,2]
[401137530,1767964241135,-316.4534495,0.000159,2]
[401137531,1767964241144,-316.45344945,0.000159,2]
[401137532,1767964241154,-316.45344945,0.000159,2]
[401137533,1767964241162,-316.45344945,0.000159,2]
[401137534,1767964241171,-182.1,0.00015993,2]
[401137535,1767964241181,-574.12855637,0.00016055,2]
[401137536,1767964241190,-566.0,0.00016074,2]
[401137537,1767964241199,-4819.0,0.00016074,2]
[401137538,1767964241208,-1312.0,0.00016074,2]
[401137539,1767964241217,-2459.15,0.00016074,2]
[401137540,1767964241226,-150.0,0.00016108,2]
[401137541,1767964241236,-150.0,0.00016108,2]
[401137542,1767964241245,-150.0,0.00016108,2]
[401137543,1767964241254,-150.0,0.00016108,2]
[401137544,1767964241264,-150.0,0.00016108,2]
[401137545,1767964241273,-2927.90722046,0.00016109,2]
[401137546,1767964241283,-2165.0,0.00016119,2]
[401137547,1767964241292,-150.00000001,0.000162,2]
[401137548,1767964241302,-356.78249281,0.0001627,2]
[401137549,1767964241311,-19528.79827464,0.0001628,2]
[401137550,1767964241348,-2511.50294633,0.0001628,2]
[401137551,1767964241357,-200.0,0.00016306,2]
[401137552,1767964241371,-2000.0,0.00016307,2]
[401137553,1767964241381,-200.0,0.00016307,2]
[401137554,1767964241390,-167.96126188,0.00016308,2]
[401137555,1767964241399,-12227.46277544,0.00016308,2]
[401137556,1767964241409,-578.3658616,0.00016338,2]
[401137557,1767964241418,-237.41240471,0.00016438,2]
[401137558,1767964241428,-3147.1185389,0.00016438,2]
[401137559,1767964241437,-23730.17621114,0.00016438,2]
[401137560,1767964241448,-3853.14754218,0.00016438,2]
[401137571,1767964244417,-123.68890373,0.00014101,2]
[401137612,1767964246590,-903.34575,0.00014101,2]
[401137613,1767964246605,-4525.0889504,0.00014101,2]
[401137614,1767964246744,-508.21441361,0.00014101,2]
[401137615,1767964246754,-316.45344945,0.000159,2]
[401137616,1767964246764,-2530.19958995,0.00016074,2]
[401137617,1767964246775,-1404.55695213,0.00016074,2]
[401137618,1767964246787,-2618.24345792,0.00016074,2]
[401137619,1767964246796,-8324.77418998,0.00016438,2]
[401137620,1767964246808,-988.49382925,0.00016438,2]
[401137621,1767964246819,-4626.78912661,0.00016438,2]
[401137622,1767964246831,-1236.613284,0.00016438,2]
[401137623,1767964246844,-6916.8397409,0.00016438,2]
[401137624,1767964246855,-593.5775,0.00016438,2]
[401137625,1767964246866,-641.8065,0.00016438,2]
[401137626,1767964246877,-401.35999998,0.00016438,2]
[401137637,1767965146963,173.07,6.534e-05,2]
[401137638,1767965147157,173.07,9.672e-05,2]
[401137639,1767965185116,1500.0,0.00010959,2]
[401137644,1767965375272,684.69020051,0.00011072,2]
[401137670,1767965433204,-1573.00501402,0.00012098,2]
[401137671,1767965433215,-150.0,0.00012181,2]
[401137672,1767965433225,-1668.119385,0.00012412,2]
[401137673,1767965433235,-2497.80726356,0.00012509,2]
[401137674,1767965433375,-61.01203692,0.00012509,2]
[401137675,1767965433385,-253.41395061,0.0001255,2]
[401137676,1767965433399,-223.97257334,0.00012595,2]
[401137677,1767965433426,-76.02742666,0.00012595,2]
[401137678,1767965433436,-464.51400112,0.00012595,2]
[401137679,1767965433505,-638.20664196,0.00012595,2]
[401137680,1767965433517,-97.27935692,0.00012595,2]
[401137681,1767965433527,-1212.40828674,0.00012596,2]
[401137682,1767965433539,-482.13,0.00012596,2]
[401137683,1767965433574,-827.08473548,0.00012596,2]
[401137684,1767965433586,-787.27893922,0.00012596,2]
[401137685,1767965433598,-304.91458257,0.00012596,2]
[401137686,1767965433608,-2085.03470265,0.00012596,2]
[401137687,1767965433619,-448.54201431,0.00012596,2]
[401137688,1767965433632,-2166.24299136,0.00012596,2]
[401137689,1767965433641,-173.07,0.00012811,2]
[401137690,1767965433651,-150.0,0.00012915,2]
[401137691,1767965433660,-517.41148403,0.00012916,2]
[401137692,1767965433669,-948.07352461,0.00012917,2]
[401137693,1767965438131,-443.26536606,0.00012915,2]
[401137694,1767965438144,-56.73463394,0.00012915,2]
[401137695,1767965438153,-500.0,0.00012915,2]
[401137696,1767965438166,-500.0,0.00012915,2]
[401137697,1767965438176,-500.0,0.00012915,2]
[401137698,1767965438187,-500.0,0.00012915,2]
[401137699,1767965438197,-500.0,0.00012915,2]
[401137700,1767965438207,-500.0,0.00012915,2]
[401137701,1767965438221,-500.0,0.00012915,2]
[401137702,1767965438232,-500.0,0.00012915,2]
[401137703,1767965438248,-500.0,0.00012915,2]
[401137704,1767965438260,-500.0,0.00012915,2]
[401137705,1767965438271,-500.0,0.00012915,2]
[401137706,1767965438281,-415.9524244,0.00012915,2]
[401137707,1767965438294,-84.0475756,0.00012915,2]
[401137708,1767965438304,-500.0,0.00012915,2]
[401137709,1767965438314,-200.0,0.00012915,2]
[401137710,1767965438324,-1393.95314773,0.00012917,2]
[401137715,1767965438445,-310.71,0.00012917,2]
[401137717,1767965438457,-3309.71001556,0.00012917,2]
[401137719,1767965438473,-392.59463394,0.00012917,2]
[401137724,1767965438567,-670.10000021,0.00012917,2]
[401137730,1767965440999,-22989.30025605,0.00012917,2]
[401137731,1767965441011,-471.13398646,0.00012917,2]
[401137732,1767965441022,-4532.30000001,0.00012917,2]
[401137733,1767965441034,-3030.275,0.00012917,2]
[401137734,1767965441089,-360.11324534,0.00012917,2]
[401137735,1767965441100,-4524.04644682,0.00012917,2]
[401137736,1767965441111,-957067.68974327,0.00012917,2]
[401137737,1767965441121,-2500.0,0.00012925,2]
[401137738,1767965441130,-165.66167419,0.00012925,2]
[401137739,1767965441139,-5304.08143778,0.0001295,2]
[401137740,1767965441148,-441.75794728,0.00012951,2]
[401137741,1767965441157,-11790.47721528,0.0001298,2]
[401137742,1767965441166,-500.0,0.0001298,2]
[401137743,1767965441175,-165.213,0.00013017,2]
[401137744,1767965441184,-1167.72,0.00013017,2]
[401137745,1767965441193,-1322.632,0.00013017,2]
[401137746,1767965441203,-151.0,0.00013017,2]
[401137747,1767965441212,-151.0,0.00013017,2]
[401137748,1767965441224,-151.0,0.00013017,2]
[401137749,1767965441234,-151.0,0.00013017,2]
[401137750,1767965441244,-151.0,0.00013017,2]
[401137751,1767965441253,-151.0,0.00013017,2]
[401137752,1767965441263,-151.0,0.00013017,2]
[401137753,1767965441272,-151.0,0.00013017,2]
[401137754,1767965441282,-500.0,0.00013017,2]
[401137755,1767965441292,-151.0,0.00013017,2]
[401137756,1767965441301,-500.0,0.00013017,2]
[401137757,1767965441310,-500.0,0.00013017,2]
[401137758,1767965441320,-151.0,0.00013017,2]
[401137759,1767965441329,-500.0,0.00013017,2]
[401137760,1767965441339,-151.0,0.00013017,2]
[401137761,1767965441348,-500.0,0.00013017,2]
[401137762,1767965441357,-151.0,0.00013017,2]
[401137763,1767965441367,-500.0,0.00013017,2]
[401137764,1767965441376,-151.0,0.00013017,2]
[401137765,1767965441386,-151.0,0.00013017,2]
[401137766,1767965441395,-160.89416707,0.00013017,2]
[401137767,1767965441404,-200.0,0.00013017,2]
[401137768,1767965441413,-151.0,0.00013017,2]
[401137769,1767965441423,-151.0,0.00013017,2]
[401137770,1767965441432,-151.0,0.00013017,2]
[401137771,1767965441441,-151.0,0.00013017,2]
[401137772,1767965441450,-200.0,0.00013017,2]
[401137773,1767965441459,-151.0,0.00013017,2]
[401137774,1767965441472,-500.0,0.00013017,2]
[401137775,1767965441481,-151.0,0.00013017,2]
[401137776,1767965441491,-500.0,0.00013017,2]
[401137777,1767965441500,-151.0,0.00013017,2]
[401137778,1767965441509,-500.0,0.00013017,2]
[401137779,1767965441519,-151.0,0.00013017,2]
[401137780,1767965441527,-500.0,0.00013017,2]
[401137781,1767965441536,-151.0,0.00013017,2]
[401137782,1767965441546,-500.0,0.00013017,2]
[401137783,1767965441555,-151.0,0.00013017,2]
[401137784,1767965441565,-500.0,0.00013017,2]
[401137785,1767965441575,-500.0,0.00013017,2]
[401137786,1767965441584,-151.0,0.00013017,2]
[401137787,1767965441594,-500.0,0.00013017,2]
[401137788,1767965441603,-151.0,0.00013017,2]
[401137789,1767965441612,-500.0,0.00013017,2]
[401137790,1767965441621,-200.0,0.00013017,2]
[401137791,1767965441631,-500.0,0.00013017,2]
[401137792,1767965441641,-500.0,0.00013017,2]
[401137793,1767965441650,-577.21725198,0.00013017,2]
[401137794,1767965441659,-448.42295485,0.0001305,2]
[401137795,1767965441668,-1506.7,0.0001308,2]
[401137796,1767965441677,-166.66,0.00013123,2]
[401137797,1767965441687,-1000.0,0.00013125,2]
[401137798,1767965441696,-7411.4566,0.00013125,2]
[401137799,1767965441706,-500.0,0.00013254,2]
[401137800,1767965441719,-1167.72,0.00013291,2]
[401137801,1767965441729,-250.0,0.00013308,2]
[401137802,1767965441739,-1100.0,0.000135,2]
[401137803,1767965441748,-5304.0814377,0.000135,2]
[401137804,1767965441758,-11790.4772152,0.00013527,2]
[401137805,1767965441767,-158.55612686,0.00013528,2]
[401137806,1767965441776,-1167.72,0.00013565,2]
[401137807,1767965441786,-524.59971564,0.00013565,2]
[401137808,1767965441795,-195.0,0.00013653,2]
[401137809,1767965441806,-300.0,0.00013653,2]
[401137810,1767965441816,-195.0,0.00013653,2]
[401137811,1767965441826,-300.0,0.00013653,2]
[401137812,1767965441835,-250.0,0.00013653,2]
[401137813,1767965441844,-195.0,0.00013653,2]
[401137814,1767965441853,-166.66,0.00013664,2]
[401137815,1767965441862,-500.0,0.00013698,2]
[401137816,1767965441871,-500.0,0.00013698,2]
[401137817,1767965441880,-500.0,0.00013698,2]
[401137818,1767965441890,-517.03405234,0.00013698,2]
[401137819,1767965441899,-519.52075331,0.00013698,2]
[401137820,1767965441909,-500.0,0.00013698,2]
[401137821,1767965441918,-500.0,0.00013698,2]
[401137822,1767965441928,-160.97517369,0.00013698,2]
[401137823,1767965441937,-165.66167415,0.00013754,2]
[401137824,1767965441946,-420.0,0.00013819,2]
[401137825,1767965441955,-1405.73,0.00013832,2]
[401137826,1767965441964,-1167.72,0.00013839,2]
[401137827,1767965441976,-1680.0,0.00013854,2]
[401137828,1767965441985,-300.0,0.00013958,2]
[401137829,1767965441995,-2500.0,0.00013958,2]
[401137830,1767965442004,-305.75969384,0.00013958,2]
[401137831,1767965442014,-255.0,0.00014013,2]
[401137832,1767965442023,-5304.0814377,0.0001405,2]
[401137833,1767965442033,-11790.4772152,0.00014073,2]
[401137834,1767965442044,-179.7,0.00014103,2]
[401137835,1767965442054,-1167.72,0.00014113,2]
[401137836,1767965442063,-166.66,0.00014206,2]
[401137837,1767965442072,-1167.72,0.00014387,2]
[401137838,1767965442082,-1153.0,0.000145,3]
[401137839,1767965442092,-1405.73,0.00014524,2]
[401137840,1767965442102,-165.66167415,0.00014583,2]
[401137841,1767965442112,-5304.0814377,0.000146,2]
[401137842,1767965442121,-11790.4772152,0.0001462,2]
[401137843,1767965442131,-1167.72,0.00014661,2]
[401137844,1767965442140,-151.0,0.00014711,2]
[401137845,1767965442149,-166.66,0.00014747,2]
[401137846,1767965442159,-256.01043912,0.00014763,2]
[401137847,1767965442169,-500.0,0.00014763,2]
[401137848,1767965442179,-500.51807202,0.00014763,2]
[401137849,1767965442188,-500.0,0.00014763,2]
[401137850,1767965442198,-500.0,0.00014763,2]
[401137851,1767965442207,-500.0,0.00014763,2]
[401137852,1767965442220,-500.0,0.00014763,2]
[401137853,1767965442229,-500.0,0.00014763,2]
[401137854,1767965442239,-500.0,0.00014763,2]
[401137855,1767965442248,-500.0,0.00014763,2]
[401137856,1767965442258,-500.0,0.00014763,2]
[401137857,1767965442268,-500.0,0.00014763,2]
[401137858,1767965442277,-500.0,0.00014763,2]
[401137859,1767965442287,-500.0,0.00014763,2]
[401137860,1767965442297,-500.0,0.00014763,2]
[401137861,1767965442306,-500.0,0.00014763,2]
[401137862,1767965442316,-500.0,0.00014763,2]
[401137863,1767965442325,-500.0,0.00014763,2]
[401137864,1767965442335,-368.2931148,0.00014763,2]
[401137865,1767965442344,-500.88165281,0.00014763,2]
[401137866,1767965442353,-632.9385196,0.00014763,2]
[401137867,1767965442363,-501.08333283,0.00014763,2]
[401137868,1767965442372,-503.68229257,0.00014763,2]
[401137869,1767965442382,-646.79718152,0.00014763,2]
[401137870,1767965442391,-500.0,0.00014763,2]
[401137871,1767965442401,-500.35865893,0.00014763,2]
[401137872,1767965442410,-500.99700202,0.00014763,2]
[401137873,1767965442419,-500.0,0.00014763,2]
[401137874,1767965442428,-501.064427,0.00014763,2]
[401137875,1767965442437,-666.0,0.00014845,2]
[401137876,1767965442447,-151.0,0.00014904,2]
[401137877,1767965442458,-1167.74,0.00014935,2]
[401137878,1767965442469,-999.0,0.00014951,3]
[401137879,1767965442479,-356.78249281,0.0001499,2]
[401137880,1767965442488,-666.0,0.00014999,2]
[401137881,1767965442497,-10137.16077049,0.00015,2]
[401137882,1767965442507,-22970.4509711,0.00015,2]
[401137883,1767965442517,-5304.0814377,0.0001515,2]
[401137884,1767965442528,-587.0,0.00015161,2]
[401137885,1767965442538,-11790.4772152,0.00015167,2]
[401137886,1767965442548,-433.0,0.00015201,2]
[401137887,1767965442558,-1405.73,0.00015215,2]
[401137888,1767965442568,-2351.0,0.0001524,2]
[401137889,1767965442578,-166.66,0.00015289,2]
[401137890,1767965442588,-1000.0,0.0001531,2]
[401137891,1767965442598,-500.0,0.0001531,2]
[401137892,1767965442610,-165.66167415,0.00015413,2]
[401137893,1767965442620,-180.0,0.00015442,2]
[401137894,1767965442629,-250.0,0.00015479,2]
[401137895,1767965442639,-500.0,0.00015539,2]
[401137896,1767965442649,-500.0,0.00015539,2]
[401137897,1767965442658,-500.0,0.00015539,2]
[401137898,1767965442668,-8260.13072239,0.00015539,2]
[401137899,1767965442678,-250.0,0.00015539,2]
[401137900,1767965442687,-639.07285647,0.00015539,2]
[401137901,1767965442697,-170.05589298,0.00015539,2]